Cogmind - Beta 13 @@@ ROGUE MODE // 2024.04.02 @ 15:30:38 Player: frawding Result: Destroyed by G-47 Trooper with Particle Gun Performance ------------- Evolutions (3) 1500 Regions Visited (5) 1000 Robots Destroyed (58) 290 Value Destroyed (1508) 1508 Prototype IDs (3) 60 Alien Tech Used (0) 0 Bonus (224) 224 TOTAL SCORE: 4582 Bonus ------- High Alert Combat Kills 24 Entered Garrisons 200 Cogmind --------- Core Integrity 0/700 Matter 179/300 Energy 100/100 System Corruption 0% Temperature Cool (26) Movement Core (50) Location -7/Garrison Parts ------- > --- POWER (1) -------- (None) > --- PROPULSION (3) --- (None) > --- UTILITY (6) ------ (None) > --- WEAPON (3) ------- (None) > --- INVENTORY (5) ---- Medium Storage Unit Improved Light Armor Plating Improved Light Armor Plating Gauss Cannon Great Maul Peak State ------------ > --- POWER ------------ Light Nuclear Core > --- PROPULSION ------- Carbon-fiber Leg Carbon-fiber Leg Carbon-fiber Leg > --- UTILITY ---------- Medium Storage Unit Signal Interpreter Advanced Targeting Computer Advanced Targeting Computer Hardened Medium Armor Plating > --- WEAPON ----------- Minigun Great Maul > --- INVENTORY -------- Carbon-fiber Leg Improved Light Armor Plating Improved Light Armor Plating Improved Light Armor Plating Improved Light Armor Plating Heavy Laser Heavy Laser Heavy Laser Heavy Laser [Rating: 32] Favorites ----------- Power Light Nuclear Core Engine Ion Engine Power Core Light Nuclear Core Propulsion Carbon-fiber Leg Leg Carbon-fiber Leg Wheel Wheel Flight Unit VTOL Module Utility Advanced Targeting Computer Device Seismic Detector Storage Small Storage Unit Processor Advanced Targeting Computer Protection Hardened Medium Armor Plating Weapon Field Laser Energy Gun Field Laser Ballistic Gun Assault Rifle Ballistic Cannon Gauss Cannon Launcher Mini Grenade Launcher Impact Weapon Great Maul Build | -11 -10 -9 -8 -7 -7 ------- Run | Yrd Mat Mat Mat Fac Gar Slots Evolved 6 | . . 2 2 2 . Power . | . . . . . . Propulsion 1 | . . . 1 . . Utility 4 | . . 2 1 1 . Weapon 1 | . . . . 1 . Parts Attached 51 | 7 3 24 7 10 . Power 4 | 1 . 3 . . . Engine 1 | 1 . . . . . Core 3 | . . 3 . . . Reactor . | . . . . . . Propulsion 16 | 2 . 10 2 2 . Treads . | . . . . . . Leg 5 | . . 2 2 1 . Wheel 10 | 2 . 8 . . . Hover . | . . . . . . Flight 1 | . . . . 1 . Utility 14 | 2 1 6 3 2 . Device 1 | 1 . . . . . Storage 4 | 1 . 3 . . . Processor 5 | . 1 3 1 . . Hackware . | . . . . . . Protection 4 | . . . 2 2 . Artifact . | . . . . . . Weapon 17 | 2 2 5 2 6 . Energy Gun 7 | . . 2 . 5 . Energy Cannon . | . . . . . . Ballistic Gun 4 | 2 1 . 1 . . Ballistic Cannon 1 | . . . . 1 . Launcher 4 | . 1 3 . . . Special Weapon . | . . . . . . Impact Weapon 1 | . . . 1 . . Slashing Weapon . | . . . . . . Piercing Weapon . | . . . . . . Special Melee Weapon . | . . . . . . Unidentified Prototypes 1 | . . . . 1 . Parts Lost 17 | . . 4 7 5 1 Power 2 | . . 1 1 . . Propulsion 7 | . . 2 3 1 1 Utility 3 | . . . 2 1 . Weapon 5 | . . 1 1 3 . Highest Loss Streak 7 | . . 2 7 5 1 To Critical Strikes . | . . . . . . Average Slot Usage (%) 89 | . 100 97 97 45 7 Engine 3 | . 14 . . . . Core 6 | . . 10 8 . . Leg 8 | . . 4 25 3 . Wheel 12 | . 28 16 . . . Storage 10 | . 14 11 9 6 . Processor 24 | . 11 32 29 21 . Protection 1 | . . . 6 2 . Energy Gun 5 | . . 12 . 5 . Ballistic Gun 5 | . 18 . 6 . . Launcher 6 | . 9 8 3 . . Impact Weapon 1 | . . . 7 . . Naked Turns 4 | . . . . . 4 Heaviest Build 30 | 14 15 17 30 28 . Greatest Support 45 | 20 20 32 45 15 4 Greatest Overweight (x) 9 | . . 1 4 9 . Average Overweight (x) . | . . . . . . Largest Inventory Capacity 20 | 8 8 20 10 10 5 Average Capacity 8 | 7 8 8 10 9 5 Most Carried 10 | 3 6 10 10 9 5 Average Carried 7 | . 4 7 9 5 5 Final Capacity 10 | 8 8 10 10 5 5 Final Carried 10 | 3 6 10 8 5 5 Class Distribution -------------------- 100% | Mutant Dominant Class ---------------- Mutant | -10/Materials Mutant | -9/Materials Mutant | -8/Materials Mutant | -7/Factory Mutant | -7/Garrison Resources | -11 -10 -9 -8 -7 -7 ----------- Run | Yrd Mat Mat Mat Fac Gar Matter Collected 1157 | 322 285 342 167 41 . Remotely . | . . . . . . Salvage Created 1407 | 143 305 410 494 55 . Parts 102 | 15 19 38 25 5 . Haulers Intercepted . | . . . . . . Recyclers Shooed . | . . . . . . Parts Field Recycled . | . . . . . . Retrieved Matter . | . . . . . . Parts Self-Destructed . | . . . . . . Prevented . | . . . . . . Kills | -11 -10 -9 -8 -7 -7 ------- Run | Yrd Mat Mat Mat Fac Gar Combat Hostiles Destroyed 36 | . 9 12 12 3 . Melee 3 | . . . 3 . . Guns 13 | . 4 8 1 . . Cannons 3 | . . . . 3 . AOE 12 | . 5 4 3 . . Classes Destroyed 12 | 2 5 3 2 . . Worker 3 | . 2 1 . . . Builder 1 | . . 1 . . . Tunneler 5 | 4 1 . . . . Recycler 1 | 1 . . . . . Mechanic 1 | . . 1 . . . Operator 3 | . 1 2 . . . Watcher 8 | . 2 2 4 . . Swarmer 13 | . 2 3 5 3 . Grunt 16 | . 7 5 4 . . Sentry 5 | . . 4 1 . . Hunter 1 | . . . 1 . . Heavy 1 | . . . 1 . . Best Kill Streak 8 | 5 4 8 4 3 . Combat Bots Only 4 | . 3 4 3 3 . Max Kills in Single Turn 4 | 1 2 4 4 1 . Gunslinging . | . . . . . . Exploded 3 | . 1 1 3 . . Melee 1 | . . . 1 . . Uniques/NPCs Destroyed . | . . . . . . Combat | -11 -10 -9 -8 -7 -7 -------- Run | Yrd Mat Mat Mat Fac Gar Hostile Shots Fired 413 | . 41 74 131 145 22 Missed 116 | . 17 19 31 40 9 Damage Taken 4257 | . 271 693 1709 1388 196 Core 1466 | . 91 187 486 539 163 Absorbed by Shields 17 | . . . . . 17 Regen/Repaired (Parts) 12 | . . 12 . . . Core Remaining (%) 56 | 100 63 53 11 . . Volleys Fired 107 | 13 33 37 6 18 . Largest 2 | 2 2 2 2 2 . Hottest 138 | 40 50 126 60 138 . Shots Fired 189 | 26 66 69 8 20 . Gun 137 | 26 46 57 4 4 . Cannon 16 | . . . . 16 . Launcher 36 | . 20 12 4 . . Special . | . . . . . . Kinetic 92 | 26 46 . 4 16 . Thermal 61 | . . 57 . 4 . Explosive 36 | . 20 12 4 . . Electromagnetic . | . . . . . . Robot Hit Streak 14 | 5 6 14 5 6 . Robot Miss Streak 5 | 2 5 3 . 3 . Penetration Max 1 | . . . . 1 . Secondary Targets 1 | . 1 . . . . Max Gunslinging Chain 1 | . 1 . . . . Shots Hit Robots 113 | 16 19 43 24 11 . Core Hits 73 | 7 29 25 8 4 . Critical Kills 1 | . . . 1 . . Critical Parts Destroyed 7 | . . . 7 . . Critical Strikes 11 | . . 2 8 1 . Burn 2 | . . 2 . . . Blast 1 | . . . . 1 . Smash 8 | . . . 8 . . Melee Attacks 29 | . . . 29 . . Impact 29 | . . . 29 . . Slashing . | . . . . . . Piercing . | . . . . . . Sneak Attacks . | . . . . . . Combat Hostiles . | . . . . . . Follow-up Attacks . | . . . . . . Damage Inflicted 3701 | 169 972 1169 1096 295 . Guns 1144 | 169 223 670 62 20 . Cannons 275 | . . . . 275 . Explosions 1513 | . 749 499 265 . . Melee 769 | . . . 769 . . Ramming . | . . . . . . Kinetic 729 | 169 223 . 62 275 . Thermal 690 | . . 670 . 20 . Explosive 1513 | . 749 499 265 . . Electromagnetic . | . . . . . . Impact 769 | . . . 769 . . Slashing . | . . . . . . Piercing . | . . . . . . Highest Corruption 3 | . 3 . . . . Average Corruption 2 | . 2 . . . . Corruption Purged . | . . . . . . Corruption Blocked . | . . . . . . Effects 2 | . 2 . . . . Matter Fused 1 | . 1 . . . . Energy Discharges 1 | . 1 . . . . Overload Shots . | . . . . . . Overflow Damage 438 | . . 37 399 2 . Projectiles 2 | . . . . 2 . Explosions 37 | . . 37 . . . Melee 399 | . . . 399 . . Knockbacks 7 | . . . 6 1 . Impact 6 | . . . 6 . . Kinetic 1 | . . . . 1 . Secondary . | . . . . . . Self-Inflicted Damage 72 | . 34 22 16 . . Shots 5 | . 3 1 1 . . Rammed 1 | . . . . 1 . Targets Rammed 1 | . . . . 1 . Kicked . | . . . . . . Crushed . | . . . . . . Highest Temperature 489 | . 12 489 36 72 22 Average Temperature 151 | . 5 181 14 30 22 Received Heat Transfer 1259 | . 84 288 615 135 137 Effects 5 | . . 5 . . . Energy Bleed 1 | . . 1 . . . Interference 2 | . . 2 . . . Damage (major) 2 | . . 2 . . . Siege Activations . | . . . . . . Robots Corrupted . | . . . . . . Combat Hostiles . | . . . . . . Parts Fried 12 | . . . 12 . . Impact Corruptions 12 | . . . 12 . . Robots Melted . | . . . . . . Combat Hostiles . | . . . . . . Parts Melted 6 | . . 6 . . . Heat Transferred 1665 | . . 1628 . 37 . Parts Sabotaged . | . . . . . . Parts Stolen . | . . . . . . Parts Stripped . | . . . . . . Power Chain Reactions . | . . . . . . Alert | -11 -10 -9 -8 -7 -7 ------- Run | Yrd Mat Mat Mat Fac Gar Peak Influence 488 | 25 488 461 422 205 143 Initial 147 | . 16 126 143 147 143 Average 248 | 9 216 266 337 167 142 Maximum Alert Level 2 | . 2 2 2 1 . Low Security (%) 43 | 100 48 38 4 99 100 Level 1 46 | . 35 52 83 . . Level 2 9 | . 16 9 12 . . Level 3 . | . . . . . . Level 4 . | . . . . . . Level 5 . | . . . . . . High Security . | . . . . . . Max Security . | . . . . . . Squads Dispatched 8 | . 3 1 2 2 . Investigation 3 | . 1 . 1 1 . Extermination . | . . . . . . Reinforcement 5 | . 2 1 1 1 . Assault . | . . . . . . Garrison . | . . . . . . Intercept . | . . . . . . Searches Triggered . | . . . . . . Construction Impeded . | . . . . . . Haulers Reinforced . | . . . . . . Active Scanning Responses . | . . . . . . Cargo Convoy Interrupts . | . . . . . . Stealth | -11 -10 -9 -8 -7 -7 --------- Run | Yrd Mat Mat Mat Fac Gar Distress Signals 4 | . 1 1 2 . . Communications Jammed . | . . . . . . Distress Signals . | . . . . . . Times Spotted 94 | . 19 22 26 13 14 Peak Tracking Total 14 | . 4 5 8 6 14 Tactical Retreats 2 | . . 1 1 . . Traps | -11 -10 -9 -8 -7 -7 ------- Run | Yrd Mat Mat Mat Fac Gar Traps Triggered 6 | . 4 . 1 . 1 Indirectly . | . . . . . . Trap Hack Attempts . | . . . . . . Triggered . | . . . . . . Disarmed . | . . . . . . Reprogrammed . | . . . . . . Reused . | . . . . . . Traps Extracted . | . . . . . . Installed . | . . . . . . Triggered . | . . . . . . Machines | -11 -10 -9 -8 -7 -7 ---------- Run | Yrd Mat Mat Mat Fac Gar Machines Disabled 9 | . 2 5 2 . . Max in Single Turn 3 | . 1 3 2 . . Machines Repaired . | . . . . . . Machines Dismantled . | . . . . . . Machines Sabotaged . | . . . . . . Overloaded Fab Kills . | . . . . . . Hacking | -11 -10 -9 -8 -7 -7 --------- Run | Yrd Mat Mat Mat Fac Gar Machines Accessed 4 | . . 3 . 1 . Terminals 2 | . . 2 . . . Fabricators . | . . . . . . Repair Stations 1 | . . 1 . . . Recycling Units . | . . . . . . Scanalyzers . | . . . . . . Garrison Access 1 | . . . . 1 . Total Hacks 7 | . . 5 . 2 . Successful 5 | . . 4 . 1 . Failed 2 | . . 1 . 1 . Catastrophic 1 | . . . . 1 . Database Lockouts . | . . . . . . Manual . | . . . . . . Terminals 3 | . . 3 . . . Fabricators . | . . . . . . Repair Stations 2 | . . 2 . . . Recycling Units . | . . . . . . Scanalyzers . | . . . . . . Garrison Access 2 | . . . . 2 . Terminal Hacks 2 | . . 2 . . . Record 1 | . . 1 . . . Prototype ID Bank 1 | . . 1 . . . Fabricator Hacks . | . . . . . . Repair Station Hacks 2 | . . 2 . . . Scan Component 1 | . . 1 . . . Repair 1 | . . 1 . . . Recycling Unit Hacks . | . . . . . . Scanalyzer . | . . . . . . Garrison Access Hacks 1 | . . . . 1 . Unlock Access 1 | . . . . 1 . Unauthorized Hacks . | . . . . . . Terminals . | . . . . . . Fabricators . | . . . . . . Repair Stations . | . . . . . . Recycling Units . | . . . . . . Scanalyzers . | . . . . . . Garrison Access . | . . . . . . Data Cores Recovered 1 | . . 1 . . . Used . | . . . . . . Hacking Detections 1 | . . . . 1 . Full Trace Events 1 | . . . . 1 . Feedback Events . | . . . . . . Feedback Blocked . | . . . . . . Robot Schematics Acquired . | . . . . . . Robots Built . | . . . . . . Authchips . | . . . . . . Time . | . . . . . . Total Robot Build Rating . | . . . . . . Part Schematics Acquired . | . . . . . . Parts Built . | . . . . . . Authchips . | . . . . . . Time . | . . . . . . Total Part Build Rating . | . . . . . . Parts Repaired 1 | . . 1 . . . Time 26 | . . 26 . . . Parts Recycled . | . . . . . . Recycled Matter . | . . . . . . Retrieved Matter . | . . . . . . Retrieved Components . | . . . . . . Parts Scanalyzed . | . . . . . . Part Schematics Acquired . | . . . . . . Parts Damaged . | . . . . . . Bothacking | -11 -10 -9 -8 -7 -7 ------------ Run | Yrd Mat Mat Mat Fac Gar Used RIF Installer . | . . . . . . Robots Hacked . | . . . . . . Non-combat . | . . . . . . Combat . | . . . . . . Robot Hacks Applied . | . . . . . . Relay Couplers Released . | . . . . . . Fabnet Peak Effective % . | . . . . . . Robots Rewired . | . . . . . . Allies Hacked . | . . . . . . Hacks Repelled . | . . . . . . Allies | -11 -10 -9 -8 -7 -7 -------- Run | Yrd Mat Mat Mat Fac Gar Total Allies . | . . . . . . Largest Group . | . . . . . . Highest-Rated Group . | . . . . . . Highest-Rated Ally . | . . . . . . Total Orders . | . . . . . . Ally Attacks . | . . . . . . Total Damage . | . . . . . . Kills . | . . . . . . Allies Corrupted . | . . . . . . Allies Melted . | . . . . . . Intel | -11 -10 -9 -8 -7 -7 ------- Run | Yrd Mat Mat Mat Fac Gar Robot Analysis Total . | . . . . . . Derelict Logs Recovered . | . . . . . . Drone Launches . | . . . . . . Drone Recoveries . | . . . . . . Exploration | -11 -10 -9 -8 -7 -7 ------------- Run | Yrd Mat Mat Mat Fac Gar Turns Passed 2253 | 93 467 865 528 244 56 Spaces Moved 1698 | 54 453 627 317 181 66 Core 21 | 10 . . 2 5 4 Treads . | . . . . . . Legs 560 | . . 142 315 103 . Wheels 982 | 44 453 485 . . . Hover . | . . . . . . Flight 135 | . . . . 73 62 Fastest Speed 35 | 50 80 80 120 35 35 Average Speed 93 | 74 80 95 120 100 35 Slowest Speed 500 | 80 80 120 250 500 50 Overloaded Moves . | . . . . . . Propulsion Burnouts . | . . . . . . Robots Hopped 1 | . . . . 1 . Cave-ins Triggered . | . . . . . . Exploration Rate (%) 35 | 4 86 54 38 6 22 Regions Visited 5 Branch Regions . Pre-discovered Areas . | . . . . . . Known Exits Taken 4 | . 1 1 1 1 . Unknown Exits Taken 1 | 1 . . . . . Scrap Searched . | . . . . . . Spaces Dug 2 | . . . . 2 . Terrain Destroyed 176 | . 108 29 30 9 . Melee . | . . . . . . Projectile 9 | . . . . 9 . AOE 167 | . 108 29 30 . . Terrain Rammed . | . . . . . . Walls Destroyed . | . . . . . . Machines Disabled . | . . . . . . Actions | -11 -10 -9 -8 -7 -7 --------- Run | Yrd Mat Mat Mat Fac Gar Total 2134 | 83 494 834 401 224 98 Wait 155 | . . 95 28 2 30 Move 1691 | 53 452 626 316 178 66 Hop 1 | . . . . 1 . Pick Up 49 | 10 4 25 7 3 . Fast Attach 7 | . . 5 2 . . Attach 36 | 7 3 11 5 10 . Detach 20 | . 2 7 2 9 . Swap 8 | . . 8 . . . Drop 28 | . . 20 6 2 . Fire 107 | 13 33 37 6 18 . Melee 29 | . . . 29 . . Ram 1 | . . . . 1 . Kick . | . . . . . . Crush . | . . . . . . Escape Stasis 2 | . . . . . 2 Rewire . | . . . . . . Trap . | . . . . . . Miscellaneous . | . . . . . . Route ------- -11/Scrapyard -10/Materials (discovered 4 exits: *Mat x2 / *Min x2) -9/Materials (discovered 3 exits: *Mat x2 / *Min) -8/Materials -7/Factory -7/Garrison History --------- Turn | Location | Event 28 | -11/Scrapyard | Discovered new exit (range 12) 94 | -11/Scrapyard | Entered Materials 166 | -10/Materials | Discovered new exit (range 13) 201 | -10/Materials | Identified exit to Materials 306 | -10/Materials | Discovered new exit (range 12) 314 | -10/Materials | Identified exit to Mines 317 | -10/Materials | Build established: Mutant 384 | -10/Materials | Discovered exit to Mines (range 8) 477 | -10/Materials | Discovered exit to Materials (range 10) 561 | -10/Materials | Entered another Materials area 561 | -9/Materials | Evolved 2 slots: Utility x2 649 | -9/Materials | Repaired Com. Wheel 861 | -9/Materials | Discovered new exit (range 5) 864 | -9/Materials | Identified exit to Materials 1207 | -9/Materials | Discovered exit to Materials (range 10) 1336 | -9/Materials | Discovered new exit (range 14) 1350 | -9/Materials | Identified exit to Mines 1426 | -9/Materials | Entered another Materials area 1426 | -8/Materials | Evolved 2 slots: Propulsion x1, Utility x1 1934 | -8/Materials | Discovered new exit (range 12) 1951 | -8/Materials | Core integrity fell below 50% 1952 | -8/Materials | Identified exit to Factory 1954 | -8/Materials | Entered Factory 1954 | -7/Factory | Evolved 2 slots: Utility x1, Weapon x1 1982 | -7/Factory | Lost 7 parts (1p3n2u1w) 2153 | -7/Factory | Core integrity fell below 50% 2177 | -7/Factory | Lost 5 parts (1n1u3w) 2197 | -7/Factory | Identified exit to Garrison 2198 | -7/Factory | Entered Garrison 2248 | -7/Garrison | Triggered checkpoint 2250 | -7/Garrison | Core integrity fell below 20% 2254 | -7/Garrison | Destroyed by G-47 Trooper with Particle Gun Last Messages --------------- 02184_ K-01 Serf collects debris. 02197_ Connecting with Garrison Access... >>Unlock Access door unlocked. 02197_ EXIT=UNLOCKED: GARRISON 02197_ ALERT: Suspicious activity at Garrison Access F003. Dispatching Investigation squad. LOCATION=GARRISON GOAL=ESCAPE 02248_ Critical hit (Burn: +37). Garrison Door activated. 02250_ VTOL Module destroyed. 02250_ G-47 Trooper suffers critical hit (Burn). 02252_ Triggered Stasis Trap. 02252_ A bubble of rippling energy engulfs the area. 02252_ Field strength at 94. 02252_ Field strength at 83. 02253_ Field strength at 73. 02254_ Critical hit (Burn: +27). Map ----- +----------------------------------------------------+ | ?????????????????????????????????????????????????? | | ?????????????????????????????????????????????????? | | ?????????????????????????????????????????????????? | | ?????????????????????????????????????????????????? | | ?????????????????????????????????????????????????? | | ?????????????????????????????????????????????????? | | ?????????????????????????????????????????????????? | | ?????????????????????????????????????????????????? | | ?????????????????????????????????????????????????? | | ?????????????????????????????????????????????????? | | ?????????????????????????????????????????????????? | | ?????????????????????????????????????????????????? | | ?????????????????????????????????????????????????? | | ??????????????????????#??????????????????????????? | | ?????????????????????? ??????????????????????????? | | ?????????????????????? ??????????????????????????? | | ??????????????????????# ?????????????????????????? | | ??????????????????????# ?????????????????????????? | | ??????????????????????# ?????????????????????????? | | ??????????????????????# ?????????????????????????? | | ??????????????????????# ????????????????????????? | | ??????????????????????# ?######?????????????????? | | ??????????????????????# ?# gg #?????????????????? | | ?????????????????????## ## ############??????? | | ?????????????????????# ???????? | | ?????????????????????# @ ??????? | | ?????????????????????# ???????? | | ?????????????????????# ## ## ##???????????? | | ???????????????????### ## ## ###??????????? | | ???????????????????# g #??????????? | | ???????????????????#g #??????????? | | ???????????????????# g #??????????? | | ???????????????????# #??????????? | | ???????????????????### ## ## ###??????????? | | ????????????????????## ## ## ##########???? | | ???????????????????? #???? | | ??????????????????? #???? | | ??????????????????#### ####### #???? | | ?????????????????????###### ## ##?????# #???? | | ??????????????????????????# ## #??????# #???? | | ??????????????????????????####### #??????# #???? | | ????????????????????????????????# #??????# #???? | | ????????????????????????????????# #??????# #???? | | ????????????????????????????????# #??????# #???? | | ????????????????????????????????# #??????# #???? | | ????????????????????????????????# ######## #???? | | ????????????????????????????????# ##### | | ????????????????????????????????# | | ????????????????????????????????########### ##### | | ??????????????????????????????????????????# #???? | +----------------------------------------------------+ Best States ------------- Heat Dissipation 34 Energy Generation 14 Energy Capacity 250 Matter Stores 300 Matter Capacity 300 Sight Range 16 Terrain Scan Density 10 Armor Coverage 300 Evasion (%) 63 Targeting Accuracy 24 Item Schematics ----------------- None Robot Schematics ------------------ None Fabricated ------------ Nothing Alien Tech Used ----------------- None Achievements -------------- Please Form A Line Challenges ------------ None Game ------ Seed CentriumRecoilInsulator Manual? 0 Play Time 00:36:07 Cumulative 6.0 hours Start 2024.04.02 @ 14:39:45 End 2024.04.02 @ 15:30:38 Sessions 3 Manual Loads 0 Difficulty Rogue Special Mode None Game No. 5 Rogue 5 Adventurer 0 Explorer 0 Win Type - Total 0 Types 0/0/0/0/0/0/0/0/0 Lore% 6 Gallery% 10 Achievement% 11 Wizard Run 0 Options --------- Layout 1 ASCII 0 Keyboard 0 Movement Mouse Keybinds 0 Fullscreen 1 Font 24/Smallcaps Map View 50x35 Zoom Use 0% Tactical HUD 1 Map Filters NONE Filters NONE Steam 1 RUN: b0eed11c-e583-4c8e-8329-aa2de13795fb